bitfinex/quotes_SOLUSD_20251030
["timestamp","ask_amount","ask_price","bid_price","bid_amount"]
[1761835230707,20.592,186.79,186.76,67.0782462]
[1761835231012,20.592,186.78,186.76,61.6]
[1761835231341,20.592,186.81,186.76,61.6]
[1761835231477,26.0702462,186.81,186.76,61.6]
[1761835231681,26.0702462,186.81,186.76,6.07440004]
[1761835231879,0.53,186.84,186.77,0.72]
[1761835232083,5.4782462,186.84,186.78,15.26707389]
[1761835232389,5.4782462,186.84,186.77,0.72]
[1761835232390,5.4782462,186.81,186.77,9.78882769]
[1761835232810,26.0702462,186.83,186.78,0.72]
[1761835232990,5.4782462,186.83,186.78,0.72]
[1761835233190,5.4782462,186.83,186.77,5.4782462]
[1761835233391,20.592,186.82,186.78,5.4782462]
[1761835233587,5.4782462,186.83,186.78,5.4782462]
[1761835233792,5.4782462,186.83,186.78,6.1982462]
[1761835234289,20.592,186.82,186.77,5.4782462]
[1761835234516,26.0702462,186.82,186.76,10.8326784]
[1761835234811,5.4782462,186.81,186.76,5.3544322]
[1761835235028,5.4782462,186.81,186.76,5.4782462]
[1761835235191,5.4782462,186.81,186.76,11.55271182]
[1761835235597,5.4782462,186.77,186.71,0.1]
[1761835235915,5.4782462,186.73,186.71,0.1]
[1761835236123,20.592,186.69,186.66,5.4782462]
[1761835236292,5.4782462,186.7,186.64,5.4782462]
[1761835236497,5.4782462,186.69,186.65,5.45754777]
[1761835236832,0.43,186.69,186.65,5.45754777]
[1761835236990,0.43,186.69,186.66,15.40923546]
[1761835237186,0.43,186.72,186.68,9.93098926]
[1761835237389,0.43,186.72,186.69,5.35647329]
[1761835237708,0.43,186.72,186.7,9.93098926]
[1761835237897,0.43,186.78,186.73,0.14216157]
[1761835238096,0.43,186.78,186.75,0.14216157]
[1761835238301,5.4782462,186.81,186.75,0.14216157]
[1761835238501,0.43,186.81,186.77,0.14216157]
[1761835238914,20.592,186.8,186.77,5.62040777]
[1761835239110,5.4782462,186.85,186.79,0.14216157]
[1761835239415,5.9082462,186.85,186.78,5.62040777]
[1761835239613,20.592,186.82,186.79,9.78882769]
[1761835239918,0.43,186.84,186.79,9.78882769]
[1761835240215,5.4782462,186.85,186.79,15.26707389]
[1761835240216,20.592,186.82,186.79,15.26707389]
[1761835240401,0.43,186.83,186.79,15.26707389]
[1761835240793,0.43,186.83,186.78,5.49594583]
[1761835241007,20.592,186.81,186.79,9.78882769]
[1761835241398,21.022,186.83,186.79,10.8318326]
[1761835241596,0.43,186.82,186.79,10.8318326]
[1761835241797,21.022,186.82,186.79,10.8318326]
[1761835242403,0.43,186.82,186.79,10.8318326]
[1761835243223,0.43,186.82,186.78,0.14216157]
[1761835243406,5.9082462,186.82,186.77,0.14216157]
[1761835243930,0.43,186.81,186.77,0.14216157]
[1761835244225,20.592,186.79,186.77,0.14216157]
[1761835244403,20.592,186.79,186.77,5.62040777]
[1761835244603,20.592,186.81,186.77,6.34040777]
[1761835244815,20.592,186.81,186.79,15.40923546]
[1761835245519,20.592,186.82,186.8,15.14214674]
[1761835246513,20.592,186.83,186.81,9.93098926]
[1761835246715,20.592,186.84,186.81,9.93098926]
[1761835246909,20.592,186.82,186.81,0.14216157]
[1761835247117,5.4782462,186.82,186.75,9.93098926]
[1761835247295,5.4782462,186.82,186.77,0.14216157]
[1761835247498,5.4782462,186.81,186.79,0.14216157]
[1761835247718,20.592,186.79,186.78,9.78882769]
[1761835248028,5.4782462,186.83,186.78,9.78882769]
[1761835248225,20.592,186.8,186.79,0.14216157]
[1761835249406,20.592,186.8,186.79,15.28459491]
[1761835249607,20.592,186.81,186.79,15.28459491]
[1761835249825,20.592,186.8,186.79,9.93098926]
[1761835250137,20.592,186.79,186.78,9.93098926]
[1761835250700,0.43,186.84,186.79,0.14216157]
[1761835250907,5.4782462,186.82,186.79,0.14216157]
[1761835251127,20.592,186.8,186.79,0.14216157]
[1761835251430,20.592,186.8,186.79,5.49576722]
[1761835251633,29.33731385,186.85,186.8,9.78882769]
[1761835251844,20.592,186.85,186.82,9.78882769]
[1761835252006,16.43896785,186.88,186.83,0.14216157]
[1761835252213,8.31531385,186.86,186.83,0.14216157]
[1761835252511,20.592,186.84,186.83,0.14216157]
[1761835252716,8.74531385,186.87,186.83,0.14216157]
[1761835252901,8.74531385,186.86,186.83,0.14216157]
[1761835253100,20.592,186.84,186.83,0.14216157]
[1761835253527,28.90731385,186.84,186.83,0.14216157]
[1761835253919,28.90731385,186.84,186.81,0.14216157]
[1761835254121,7.693654,186.88,186.81,0.14216157]
[1761835254122,28.90731385,186.85,186.81,9.93098926]
[1761835254736,20.592,186.85,186.81,10.65098926]
[1761835255040,28.90731385,186.85,186.81,9.93098926]
[1761835255337,8.31531385,186.85,186.81,9.93098926]
[1761835255828,8.31531385,186.83,186.81,9.93098926]
[1761835256234,8.31531385,186.82,186.81,5.49518176]
[1761835256733,8.31531385,186.83,186.81,9.93098926]
[1761835258214,20.592,186.82,186.81,5.49519406]
[1761835258415,7.693654,186.91,186.84,0.14216157]
[1761835258416,20.592,186.88,186.84,0.14216157]
[1761835258728,8.31531385,186.85,186.84,0.14216157]
[1761835259229,8.31531385,186.86,186.84,0.14216157]
[1761835259406,8.31531385,186.85,186.84,0.14216157]
[1761835259610,8.31531385,186.85,186.82,0.14216157]
[1761835259817,28.90731385,186.83,186.81,0.14216157]
[1761835260024,8.31531385,186.82,186.81,0.14216157]
[1761835261332,20.592,186.79,186.74,0.72]
[1761835261513,20.592,186.76,186.72,9.78882769]
[1761835262030,20.592,186.75,186.74,9.78882769]
[1761835262532,8.31531385,186.76,186.74,9.78882769]
[1761835262533,8.31531385,186.76,186.74,0.14216157]
[1761835262739,20.592,186.82,186.76,9.78882769]
[1761835262927,20.592,186.78,186.77,0.14216157]
[1761835263325,20.592,186.78,186.77,0.86216157]
[1761835263527,28.90731385,186.78,186.77,0.14216157]
[1761835264735,29.33731385,186.78,186.7,9.78882769]
[1761835264917,8.31531385,186.71,186.7,15.14501408]
[1761835265118,8.31531385,186.71,186.7,15.86501408]
[1761835265314,8.31531385,186.71,186.68,9.78882769]
[1761835265533,8.31531385,186.69,186.68,10.50882769]
[1761835265837,8.31531385,186.69,186.66,5.35733419]
[1761835266022,20.592,186.74,186.68,9.93098926]
[1761835266371,8.31531385,186.69,186.68,9.93098926]
[1761835266539,8.31531385,186.69,186.68,0.86216157]
[1761835266754,7.75042481,186.78,186.68,0.86216157]
[1761835266755,8.31531385,186.71,186.68,0.86216157]
[1761835267608,8.31531385,186.72,186.68,0.86216157]
[1761835267814,8.31531385,186.73,186.68,0.86216157]
[1761835268024,0.37322919,186.79,186.72,0.14216157]
[1761835268025,8.31531385,186.76,186.72,0.14216157]
[1761835268225,0.37322919,186.79,186.72,0.14216157]
[1761835268440,8.31531385,186.75,186.74,9.93098926]
[1761835269452,8.31531385,186.75,186.74,0.14216157]
[1761835269947,20.592,186.76,186.74,0.14216157]
[1761835270163,8.31531385,186.75,186.74,0.14216157]
[1761835270462,8.31531385,186.75,186.73,0.14216157]
[1761835270630,8.31531385,186.74,186.73,0.14216157]
[1761835272442,20.592,186.71,186.65,0.1]
[1761835272660,20.592,186.7,186.65,9.88882769]
[1761835272951,8.31531385,186.66,186.65,0.24216157]
[1761835273169,20.592,186.7,186.68,0.14216157]
[1761835273655,20.592,186.7,186.65,9.88882769]
[1761835273961,20.592,186.7,186.66,0.14216157]
[1761835274130,20.592,186.7,186.68,0.14216157]
[1761835274331,8.31531385,186.69,186.68,0.14216157]
[1761835274964,8.31531385,186.69,186.68,0.80216157]
[1761835278369,6.53069554,186.73,186.68,0.80216157]
[1761835278370,20.592,186.71,186.7,0.14216157]
[1761835278547,28.90731385,186.71,186.7,0.14216157]
[1761835278747,28.90731385,186.71,186.7,0.80216157]
[1761835279767,28.90731385,186.71,186.7,10.59098926]
[1761835280066,8.31531385,186.74,186.72,0.14216157]
[1761835280570,8.31531385,186.74,186.73,10.44882769]
[1761835280961,7.693654,186.78,186.74,9.93098926]
[1761835281145,16.00896785,186.78,186.74,0.80216157]
[1761835281341,16.00896785,186.78,186.77,0.14216157]
[1761835281647,8.31531385,186.81,186.77,0.14216157]
[1761835281969,28.90731385,186.81,186.79,0.14216157]
[1761835282167,8.31531385,186.82,186.79,9.93098926]
[1761835282369,8.31531385,186.82,186.79,10.59098926]
[1761835282569,20.592,186.8,186.79,9.93098926]
[1761835282968,20.592,186.84,186.81,0.14216157]
[1761835283275,8.31531385,186.83,186.81,0.14216157]
[1761835283462,20.592,186.8,186.79,0.14216157]
[1761835283670,28.90731385,186.8,186.79,0.14216157]
[1761835284168,7.62229844,186.87,186.79,0.14216157]
[1761835284375,0.66,186.97,186.86,8.31531385]
[1761835284675,8.31531385,186.94,186.89,0.14216157]
[1761835284967,20.592,186.92,186.89,0.14216157]
[1761835285183,20.592,186.91,186.9,10.59098926]
[1761835285771,8.31531385,186.94,186.91,0.14216157]
[1761835286278,20.592,186.92,186.91,0.14216157]
[1761835286479,8.31531385,186.93,186.91,0.14216157]
[1761835286684,20.592,186.94,186.91,0.14216157]
[1761835286882,8.31531385,186.93,186.91,0.14216157]
[1761835287262,8.31531385,186.92,186.91,0.14216157]
[1761835287968,20.592,186.91,186.9,0.14216157]
[1761835288389,8.31531385,186.94,186.92,0.14216157]
[1761835289379,28.90731385,186.93,186.92,0.14216157]
[1761835289684,20.592,186.93,186.92,0.14216157]
[1761835289871,28.90731385,186.93,186.92,0.14216157]
[1761835290882,28.90731385,186.93,186.89,9.93098926]
[1761835291261,0.66,186.92,186.89,9.93098926]
[1761835291473,20.592,186.93,186.91,9.93098926]
[1761835291981,0.66,186.92,186.91,0.14216157]
[1761835292172,20.592,186.93,186.91,0.14216157]
[1761835292372,20.592,186.93,186.91,9.93098926]
[1761835292965,21.252,186.93,186.91,0.14216157]
[1761835293563,8.97531385,186.92,186.89,0.14216157]
[1761835294062,0.66,186.91,186.89,0.14216157]
[1761835294898,8.97531385,186.91,186.89,9.93098926]
[1761835295496,8.97531385,186.91,186.89,0.14216157]
[1761835295789,8.97531385,186.91,186.88,0.14216157]
[1761835296086,8.31531385,186.91,186.88,0.14216157]
[1761835296270,8.97531385,186.91,186.88,0.14216157]
[1761835296474,28.90731385,186.89,186.84,5.35206688]
[1761835296666,8.31531385,186.87,186.85,9.78882769]
[1761835297069,8.31531385,186.87,186.86,0.14216157]
[1761835297602,8.97531385,186.87,186.82,15.14129583]
[1761835297908,8.31531385,186.87,186.82,23.45660968]
[1761835298194,8.31531385,186.87,186.85,0.14216157]
[1761835298598,0.66,186.9,186.87,0.14216157]
[1761835298599,8.31531385,186.88,186.87,0.14216157]
[1761835298804,0.66,186.9,186.87,0.14216157]
[1761835298973,8.31531385,186.89,186.87,0.14216157]
[1761835299167,28.90731385,186.91,186.87,0.14216157]
[1761835299387,20.592,186.89,186.87,0.14216157]
[1761835299786,21.302,186.88,186.87,0.14216157]
[1761835300280,9.02531385,186.88,186.87,0.14216157]
[1761835300690,9.02531385,186.88,186.86,0.14216157]
[1761835300987,9.02531385,186.87,186.83,21.06882769]
[1761835301188,8.31531385,186.85,186.83,21.06882769]
[1761835301398,8.31531385,186.84,186.78,8.31531385]
[1761835301572,20.592,186.83,186.79,21.06882769]
[1761835301886,20.592,186.83,186.81,9.78882769]
[1761835302063,20.592,186.82,186.81,9.78882769]
[1761835302265,20.592,186.82,186.8,9.78882769]
[1761835302688,0.71,186.85,186.81,0.14216157]
[1761835302894,20.592,186.82,186.81,0.14216157]
[1761835303092,20.592,186.82,186.8,15.14192472]
[1761835303281,20.592,186.82,186.81,0.14216157]
[1761835303590,0.71,186.81,186.8,9.78882769]
[1761835303985,9.02531385,186.81,186.8,9.93098926]
[1761835304185,20.592,186.78,186.76,9.78882769]
[1761835304370,20.592,186.77,186.76,9.78882769]
[1761835304784,20.592,186.77,186.72,13.38840602]
[1761835304785,29.61731385,186.77,186.72,13.38840602]
[1761835304978,8.31531385,186.74,186.7,5.35618639]
[1761835305178,20.592,186.7,186.68,2.79704471]
[1761835305393,20.592,186.7,186.65,0.1]
[1761835305394,8.31531385,186.69,186.65,0.1]
[1761835305568,8.31531385,186.68,186.65,5.4576106]
[1761835305774,8.31531385,186.68,186.66,9.93098926]
[1761835305976,20.592,186.67,186.66,9.93098926]
[1761835306386,20.592,186.67,186.66,9.78882769]
[1761835306796,20.592,186.73,186.68,9.78882769]
[1761835307100,8.31531385,186.69,186.65,0.1]
[1761835307394,20.592,186.71,186.65,9.88882769]
[1761835307595,20.592,186.71,186.68,8.31531385]
[1761835307795,20.592,186.71,186.7,9.93098926]
[1761835307977,9.02531385,186.71,186.68,9.78882769]
[1761835308169,9.02531385,186.7,186.69,0.14216157]
[1761835308374,0.71,186.7,186.69,0.14216157]
[1761835308603,4.24629238,186.75,186.71,0.14216157]
[1761835308913,29.61731385,186.76,186.71,5.49783172]
[1761835309076,20.592,186.72,186.71,15.28665941]
[1761835309270,20.592,186.72,186.71,34.88197326]
[1761835309472,9.02531385,186.8,186.73,0.14216157]
[1761835309700,20.592,186.76,186.75,9.93098926]
[1761835310211,0.71,186.82,186.77,0.14216157]
[1761835310379,0.71,186.84,186.77,0.14216157]
[1761835310702,20.592,186.8,186.79,5.49576722]
[1761835310886,9.02531385,186.83,186.79,9.93098926]
[1761835311090,0.71,186.94,186.83,11.78882768]
[1761835311395,0.71,186.94,186.91,0.14216157]
[1761835311604,20.592,186.92,186.91,0.14216157]
[1761835312708,0.71,186.95,186.91,0.14216157]
[1761835312893,5.46360308,186.94,186.91,0.14216157]
[1761835313211,20.592,186.92,186.91,0.14216157]
[1761835313599,5.46360308,186.92,186.91,0.14216157]
[1761835313788,5.46360308,186.92,186.9,0.14216157]
[1761835313789,6.17360308,186.92,186.9,0.14216157]
[1761835314120,9.60071527,186.97,186.9,0.14216157]
[1761835314121,6.17360308,186.91,186.9,0.14216157]
[1761835315910,6.17360308,186.91,186.87,0.14216157]
[1761835316091,5.46360308,186.88,186.87,0.14216157]
[1761835316494,6.17360308,186.88,186.87,0.14216157]
[1761835316696,5.46360308,186.88,186.87,0.14216157]
[1761835317086,6.17360308,186.88,186.87,0.14216157]
[1761835317303,5.46360308,186.88,186.87,0.14216157]
[1761835317701,6.17360308,186.88,186.87,0.14216157]
[1761835317899,6.17360308,186.88,186.84,0.14216157]
[1761835318211,5.46360308,186.85,186.84,0.14216157]
[1761835318423,5.46360308,186.85,186.84,9.93098926]
[1761835318587,5.46360308,186.85,186.84,15.28316224]
[1761835318930,5.46360308,186.88,186.84,29.87881198]
[1761835319127,5.46360308,186.88,186.86,0.14216157]
[1761835319304,0.71,186.91,186.86,9.93098926]
[1761835319486,5.46360308,186.88,186.86,9.93098926]
[1761835319892,5.46360308,186.87,186.86,9.93098926]
[1761835320190,5.46360308,186.87,186.86,0.14216157]
[1761835320387,6.17360308,186.87,186.86,0.14216157]
[1761835321203,6.17360308,186.87,186.85,0.14216157]
[1761835321401,26.05560308,186.86,186.85,0.14216157]
[1761835321598,5.34903819,186.95,186.85,0.14216157]
[1761835321599,0.71,186.91,186.85,0.14216157]
[1761835321904,5.46360308,186.86,186.85,0.14216157]
[1761835322109,20.592,186.83,186.75,0.68]
[1761835322292,5.46360308,186.77,186.76,5.35446562]
[1761835322493,20.592,186.83,186.76,30.70062968]
[1761835322717,5.46360308,186.81,186.77,0.68]
[1761835322922,5.46360308,186.81,186.78,28.52745065]
[1761835323116,5.46360308,186.81,186.79,0.14216157]
[1761835323426,5.46360308,186.81,186.8,9.93098926]
[1761835323997,5.46360308,186.82,186.81,0.14216157]
[1761835324227,42.78360194,186.99,186.81,0.14216157]
[1761835324228,20.592,186.86,186.81,11.1462925]
[1761835324418,5.46360308,186.86,186.83,9.93098926]
[1761835324612,5.46360308,186.88,186.85,0.14216157]
[1761835324801,0.71,186.92,186.87,9.93098926]
[1761835324802,5.46360308,186.89,186.87,9.93098926]
[1761835325002,5.46360308,186.88,186.86,0.14216157]
[1761835325198,5.46360308,186.87,186.85,9.78882769]
[1761835325504,20.592,186.84,186.83,9.78882769]
[1761835325712,26.05560308,186.84,186.83,9.78882769]
[1761835326024,26.05560308,186.84,186.83,9.93098926]
[1761835326212,5.46360308,186.84,186.83,9.93098926]
[1761835326609,22.97185622,186.97,186.84,0.14216157]
[1761835326610,0.71,186.92,186.84,0.14216157]
[1761835326925,0.71,186.96,186.87,5.49347531]
[1761835327121,5.46360308,186.9,186.88,9.93098926]
[1761835327507,5.46360308,186.9,186.88,10.61098926]
[1761835327844,21.302,186.96,186.88,10.61098926]
[1761835328011,5.46360308,186.92,186.89,0.14216157]
[1761835328403,5.46360308,186.92,186.91,0.14216157]
[1761835328639,5.46360308,186.95,186.93,0.14216157]
[1761835328957,20.592,186.96,186.94,0.14216157]
[1761835329226,0.91,186.99,186.95,0.14216157]
[1761835329429,0.69,186.98,186.95,0.14216157]
[1761835329733,0.2,186.99,186.97,9.93098926]
[1761835329935,0.2,186.99,186.98,10.46580581]
[1761835330121,0.2,186.99,186.98,11.12580581]
[1761835330327,5.66360308,186.99,186.98,9.93098926]
[1761835331011,0.2,186.99,186.98,15.27915483]
[1761835331220,0.2,186.99,186.98,15.81397138]
[1761835331420,0.2,186.99,186.98,16.47397138]
[1761835332021,0.0579,186.99,186.98,21.93757446]
[1761835332214,5.46360308,187.06,186.99,9.93098926]
[1761835332410,5.46360308,187.04,187.0,21.74574861]
[1761835332640,5.46360308,187.04,187.0,22.40574861]
[1761835332944,5.46360308,187.05,187.0,27.75334219]
[1761835333141,5.46360308,187.05,187.0,33.21694527]
[1761835333445,0.69,187.11,187.0,35.21694526]
[1761835333628,0.69,187.11,187.01,9.93098926]
[1761835333829,5.46360308,187.09,187.05,9.78882769]
[1761835334029,0.69,187.17,187.08,0.14216157]
[1761835334227,0.69,187.17,187.09,9.93098926]
[1761835334228,5.46360308,187.11,187.09,9.93098926]
[1761835334738,0.89,187.15,187.09,9.93098926]
[1761835334916,5.46360308,187.11,187.09,9.93098926]
[1761835335241,6.33360308,187.1,187.09,0.14216157]
[1761835335434,5.66360308,187.1,187.09,0.14216157]
[1761835335812,0.2,187.1,187.09,0.14216157]
[1761835336017,5.66360308,187.1,187.09,0.14216157]
[1761835336218,5.66360308,187.1,187.09,9.93098926]
[1761835336539,5.66360308,187.1,187.09,0.14216157]
[1761835336841,0.2,187.1,187.09,0.14216157]
[1761835337021,5.66360308,187.1,187.09,0.14216157]
[1761835337521,0.2,187.1,187.09,15.27601037]
[1761835337732,5.66360308,187.1,187.09,9.93098926]
[1761835337942,5.66360308,187.1,187.09,15.27601037]
[1761835338145,0.2,187.1,187.09,27.20601037]
[1761835338942,0.2,187.1,187.09,33.20411556]
[1761835339267,0.2,187.15,187.09,33.20411556]
[1761835339268,0.2,187.15,187.12,9.93098926]
[1761835339557,0.2,187.15,187.14,15.39459234]
[1761835340023,0.2,187.15,187.14,16.06459234]
[1761835341050,0.2,187.15,187.14,15.27458229]
[1761835341247,0.2,187.15,187.14,21.21098926]
[1761835341549,0.2,187.15,187.14,27.22458229]
[1761835341933,0.2,187.15,187.14,27.75894159]
[1761835342124,0.2,187.15,187.14,33.22254467]
[1761835342730,0.2,187.18,187.15,0.14216157]
[1761835343031,0.2,187.18,187.17,20.73732888]
[1761835343239,0.2,187.18,187.17,32.01732888]
[1761835343443,0.2,187.22,187.18,0.14216157]
[1761835343749,0.2,187.22,187.17,46.04417025]
[1761835343750,0.2,187.22,187.21,17.39459233]
[1761835344042,0.2,187.3,187.25,9.78882769]
[1761835344352,0.2,187.3,187.27,9.93098926]
[1761835344540,0.2,187.3,187.28,9.93098926]
[1761835345118,0.2,187.3,187.28,26.57058772]
[1761835346136,0.2,187.3,187.28,21.23098926]
[1761835346323,0.2,187.3,187.28,26.57058772]
[1761835346523,0.2,187.3,187.28,21.23098926]
[1761835347434,0.87,187.29,187.28,9.93098926]
[1761835348037,0.2,187.29,187.28,9.93098926]
[1761835348971,0.87,187.29,187.28,9.93098926]
[1761835349162,0.2,187.29,187.28,9.93098926]
[1761835349457,0.2,187.29,187.28,26.55058772]
[1761835349634,0.2,187.29,187.28,27.75454756]
[1761835349827,0.2,187.29,187.28,33.21815064]
[1761835350239,0.2,187.3,187.29,9.93098926]
[1761835350442,0.2,187.3,187.29,16.06459234]
[1761835350650,1e-08,187.3,187.29,16.06459234]
[1761835350835,1e-08,187.3,187.29,18.06459233]
[1761835351351,6.33360308,187.4,187.29,18.06459233]
[1761835351352,0.2,187.4,187.31,11.93098925]
[1761835351534,0.2,187.4,187.39,0.14216157]
[1761835351947,21.462,187.4,187.39,0.14216157]
[1761835352548,0.87,187.4,187.39,0.14216157]
[1761835353343,0.67,187.47,187.41,0.14216157]
[1761835353542,5.46360308,187.46,187.43,0.14216157]
[1761835354058,0.67,187.45,187.43,0.14216157]
[1761835354370,31.51920616,187.44,187.29,0.149392]
[1761835354542,0.67,187.45,187.29,5.48867685]
[1761835354863,5.46360308,187.43,187.35,5.46360308]
[1761835355034,5.46360308,187.42,187.37,9.78882769]
[1761835355237,20.592,187.43,187.37,15.12577489]
[1761835355437,5.46360308,187.42,187.37,15.12577489]
[1761835355935,5.46360308,187.41,187.37,15.12577489]
[1761835356135,5.46360308,187.41,187.37,5.3369472]
[1761835356352,5.46360308,187.41,187.38,9.93098926]
[1761835356537,5.46360308,187.41,187.37,15.12577489]
[1761835356538,0.67,187.44,187.4,9.93098926]
[1761835356741,5.46360308,187.42,187.4,9.93098926]
[1761835356952,5.46360308,187.41,187.4,9.93098926]
[1761835357262,5.46360308,187.41,187.4,21.25098926]
[1761835357462,0.67,187.46,187.41,9.93098926]
[1761835357664,5.46360308,187.43,187.42,0.14216157]
[1761835357850,0.67,187.46,187.43,9.78882769]
[1761835358054,5.46360308,187.44,187.43,9.93098926]
[1761835358250,5.46360308,187.44,187.43,0.14216157]
[1761835358561,6.13360308,187.44,187.43,9.78882769]
[1761835358757,20.592,187.41,187.31,5.46360308]
[1761835358966,5.46360308,187.36,187.33,9.78882769]
[1761835359361,5.46360308,187.38,187.36,0.14216157]
[1761835359564,5.46360308,187.37,187.36,0.14216157]
[1761835359867,5.46360308,187.37,187.36,9.78882769]
[1761835360050,5.46360308,187.37,187.36,21.08882769]
[1761835391537,26.03778844,187.75,187.54,0.14216157]
[1761835391803,26.29807148,187.76,187.56,9.93098926]
[1761835391984,20.592,187.71,187.56,0.14216157]
[1761835392181,20.592,187.7,187.56,0.14216157]
[1761835427721,38.70620845,187.78,187.77,3.736602]
[1761835427918,18.11420845,187.78,187.77,3.736602]
[1761835428351,38.70620845,187.78,187.77,3.736602]
[1761835428653,23.66022584,187.78,187.77,3.736602]
[1761835429023,20.592,187.72,187.48,5.33390228]
[1761835429241,20.592,187.72,187.5,9.78882769]
[1761835429746,20.592,187.68,187.52,9.78882769]
[1761835430245,20.592,187.71,187.52,9.78882769]
[1761835430546,3.0,187.78,187.56,11.78882768]
[1761835430747,3.0,187.78,187.58,9.78882769]
[1761835431043,3.0,187.78,187.6,9.78882769]
[1761835431620,20.592,187.77,187.6,9.78882769]
[1761835432026,20.592,187.75,187.6,9.78882769]
[1761835432241,20.592,187.75,187.57,11.48]
[1761835432532,20.592,187.75,187.58,9.78882769]
[1761835433846,25.91833071,187.75,187.58,9.78882769]
[1761835434041,20.592,187.71,187.58,9.78882769]
[1761835434857,20.592,187.74,187.6,9.78882769]
[1761835435159,20.592,187.74,187.58,15.11973911]
[1761835435558,20.592,187.74,187.58,9.78882769]
[1761835436756,20.592,187.72,187.58,9.78882769]
[1761835437337,20.592,187.74,187.58,9.78882769]
[1761835437738,3.0,187.78,187.59,10.32190514]
[1761835438134,3.0,187.78,187.6,5.3304904]
[1761835438336,3.0,187.78,187.61,10.32184831]
[1761835438642,0.71,187.77,187.61,11.04184831]
[1761835438843,0.71,187.77,187.63,9.78882769]
[1761835439088,0.71,187.77,187.65,9.78882769]
[1761835439567,0.71,187.77,187.65,10.50882769]
[1761835440369,0.71,187.77,187.65,9.78882769]
[1761835440659,20.592,187.74,187.64,11.46]
[1761835440975,20.592,187.7,187.64,10.81]
[1761835441151,20.592,187.7,187.64,10.2]
[1761835441651,20.592,187.69,187.64,10.2]
[1761835441838,20.592,187.7,187.64,10.2]
[1761835442033,20.592,187.66,187.64,10.2]
[1761835442256,13.92406219,187.66,187.64,10.2]
[1761835442564,35.02911723,187.78,187.64,10.2]
[1761835442753,29.48309984,187.78,187.65,10.50882769]
[1761835442961,3.0,187.78,187.65,10.50882769]
[1761835443173,26.85464741,187.77,187.65,10.50882769]
[1761835443556,26.85464741,187.77,187.65,9.78882769]
[1761835444245,47.41421992,187.74,187.65,9.78882769]
[1761835444675,20.592,187.72,187.64,11.4529354]
[1761835444887,20.592,187.71,187.64,10.2]
[1761835445449,20.592,187.7,187.61,11.44]
[1761835445673,20.592,187.7,187.62,11.44]
[1761835446167,20.592,187.66,187.62,11.44]
[1761835446598,20.592,187.68,187.62,12.16]
[1761835446760,20.592,187.68,187.62,11.44]
[1761835447763,20.592,187.67,187.62,11.44]
[1761835448385,20.592,187.69,187.62,11.44]
[1761835448579,20.592,187.68,187.62,12.16]
[1761835449254,20.592,187.69,187.62,12.16]
[1761835449453,20.592,187.68,187.62,12.16]
[1761835449673,20.592,187.7,187.62,12.16]
[1761835449869,12.16,187.76,187.63,11.0317915]
[1761835450386,12.16,187.76,187.65,9.78882769]
[1761835450794,20.592,187.73,187.64,9.78882769]
[1761835450963,20.592,187.73,187.66,0.71]
[1761835451579,12.16,187.76,187.66,0.71]
[1761835452095,20.592,187.73,187.66,0.71]
[1761835452398,13.92652819,187.73,187.66,0.71]
[1761835453587,13.92652819,187.73,187.67,0.53285021]
[1761835453885,13.92652819,187.73,187.68,11.42]
[1761835454477,13.92652819,187.73,187.69,0.71]
[1761835455285,13.92652819,187.73,187.7,0.53276505]
[1761835455487,13.92652819,187.73,187.71,0.67]
[1761835455677,13.92652819,187.73,187.68,11.42]
[1761835455878,13.92652819,187.73,187.69,0.67]
[1761835456385,20.592,187.76,187.69,0.67]
[1761835456884,23.592,187.78,187.69,0.67]
[1761835457093,3.0,187.78,187.69,0.67]
[1761835457276,20.592,187.77,187.69,0.67]
[1761835457475,20.092,187.77,187.69,0.67]
[1761835457672,20.092,187.77,187.7,0.53276505]
[1761835458068,20.092,187.77,187.7,1.20276505]
[1761835458568,20.092,187.77,187.71,0.67]
[1761835459364,23.592,187.78,187.7,9.78882769]
[1761835459569,20.592,187.77,187.7,9.78882769]
[1761835460076,20.592,187.77,187.71,11.38]
[1761835460387,3.0,187.78,187.67,0.67]